bitfinex/quotes_BTCUSD_20250822
["timestamp","ask_amount","ask_price","bid_price","bid_amount"]
[1755899203603,0.05927796,117190.0,117180.0,0.80268677]
[1755899205345,0.00024808,117190.0,117180.0,0.80268677]
[1755899205550,0.05927796,117190.0,117180.0,0.80268677]
[1755899205959,0.00024808,117190.0,117180.0,0.80268677]
[1755899206306,0.05927796,117190.0,117180.0,0.80268677]
[1755899207367,0.00024808,117190.0,117180.0,0.80268677]
[1755899207578,0.05927796,117190.0,117180.0,0.80268677]
[1755899209802,0.00024808,117190.0,117180.0,0.80268677]
[1755899209976,0.05927796,117190.0,117180.0,0.80268677]
[1755899211618,0.04902488,117190.0,117180.0,0.80268677]
[1755899215792,0.00024,117200.0,117180.0,0.80268677]
[1755899215995,0.04902488,117190.0,117180.0,0.65624677]
[1755899216193,0.04902488,117190.0,117180.0,0.77379577]
[1755899216566,0.04902488,117190.0,117180.0,0.79943777]
[1755899216761,0.04902488,117190.0,117180.0,0.80060777]
[1755899216967,0.00024,117200.0,117180.0,0.80060777]
[1755899217174,0.04926488,117200.0,117190.0,0.14953]
[1755899217381,0.00188,117200.0,117190.0,0.40707475]
[1755899217628,0.00188,117200.0,117190.0,0.48187085]
[1755899217836,0.05090488,117200.0,117190.0,0.48187085]
[1755899217970,0.00188,117200.0,117190.0,0.48187085]
[1755899218175,0.05090488,117200.0,117190.0,0.48384085]
[1755899218794,0.04926488,117200.0,117190.0,0.51048285]
[1755899219163,0.04926488,117200.0,117190.0,0.50785087]
[1755899219726,0.05090488,117200.0,117190.0,0.50785087]
[1755899219970,0.04926488,117200.0,117190.0,0.50785087]
[1755899220126,0.00024,117200.0,117190.0,0.50785087]
[1755899220556,0.00024,117200.0,117190.0,0.50885087]
[1755899220756,0.04926488,117200.0,117190.0,0.50885087]
[1755899221122,0.00024,117200.0,117190.0,0.50885087]
[1755899221767,0.05090488,117200.0,117190.0,0.43150675]
[1755899222503,0.05090488,117200.0,117190.0,0.43456675]
[1755899222648,0.05090488,117200.0,117190.0,0.43670675]
[1755899222872,0.00024,117200.0,117190.0,0.43670675]
[1755899226897,0.00024,117200.0,117190.0,0.45415577]
[1755899227130,0.00024,117200.0,117190.0,0.54102542]
[1755899227573,0.00024,117200.0,117190.0,0.54002542]
[1755899227765,0.00024,117200.0,117190.0,0.53902542]
[1755899227968,0.00024,117200.0,117190.0,0.54502542]
[1755899228385,0.04926488,117200.0,117190.0,0.54502542]
[1755899229023,0.00024,117200.0,117190.0,0.54502542]
[1755899229363,0.04926488,117200.0,117190.0,0.54502542]
[1755899230998,0.04926488,117200.0,117190.0,0.3812564]
[1755899231404,0.05090488,117200.0,117190.0,0.43546675]
[1755899231741,0.04926488,117200.0,117190.0,0.44066675]
[1755899238637,0.04926488,117200.0,117190.0,0.45811577]
[1755899239717,0.04926488,117200.0,117190.0,0.72661577]
[1755899240748,0.04926488,117200.0,117190.0,0.74371577]
[1755899240884,0.04926488,117200.0,117190.0,0.81348542]
[1755899252120,0.00024,117200.0,117190.0,0.81348542]
[1755899252238,0.04926488,117200.0,117190.0,0.81340542]
[1755899253282,0.04926488,117200.0,117190.0,0.66720542]
[1755899253490,0.04926488,117200.0,117190.0,0.81340542]
[1755899254333,0.03901287,117200.0,117190.0,0.81340542]
[1755899256604,0.03901287,117200.0,117190.0,0.88444542]
[1755899258930,0.03921287,117210.0,117190.0,0.88444542]
[1755899259228,0.01128181,117200.0,117190.0,0.65136067]
[1755899259439,0.01128181,117200.0,117190.0,0.77187867]
[1755899260079,0.01128181,117200.0,117190.0,0.78016067]
[1755899262016,0.01128181,117200.0,117190.0,0.78216067]
[1755899262430,0.01148181,117210.0,117190.0,0.78016067]
[1755899262653,0.01148181,117210.0,117200.0,0.14927]
[1755899262962,0.01148181,117210.0,117200.0,0.51643298]
[1755899263150,0.01148181,117210.0,117200.0,0.54207098]
[1755899263327,0.01148181,117210.0,117200.0,0.81057098]
[1755899263898,0.01148181,117210.0,117200.0,0.81257098]
[1755899265823,0.01148181,117210.0,117200.0,0.81457098]
[1755899267474,0.01148181,117210.0,117200.0,0.90144063]
[1755899269517,0.01148181,117210.0,117200.0,0.90140063]
[1755899270328,0.01148181,117210.0,117200.0,0.7938724]
[1755899271299,0.01148181,117210.0,117200.0,0.90143398]
[1755899272445,0.00952779,117210.0,117200.0,0.7938724]
[1755899273308,0.00952779,117210.0,117200.0,0.90143307]
[1755899275476,0.00952779,117210.0,117200.0,0.95633307]
[1755899275736,0.01116779,117210.0,117200.0,0.86946342]
[1755899275977,0.00952779,117210.0,117200.0,0.86946342]
[1755899280423,0.00952779,117210.0,117200.0,0.76190275]
[1755899280637,0.00952779,117210.0,117200.0,0.81166737]
[1755899281907,0.00952779,117210.0,117200.0,0.66554737]
[1755899282120,0.00952779,117210.0,117200.0,0.81162737]
[1755899282323,0.00952779,117210.0,117200.0,0.76186275]
[1755899285918,0.01116779,117210.0,117200.0,0.76186275]
[1755899286150,0.00952779,117210.0,117200.0,0.76186275]
[1755899287325,0.01072779,117220.0,117210.0,0.01744902]
[1755899287524,0.01072779,117220.0,117210.0,0.93097332]
[1755899287750,0.00118741,117220.0,117210.0,0.92760978]
[1755899287927,0.00118741,117220.0,117210.0,1.19610978]
[1755899288139,0.00118741,117220.0,117210.0,1.20683778]
[1755899288348,0.00118741,117220.0,117210.0,0.78041787]
[1755899288549,0.00118741,117220.0,117210.0,1.28263388]
[1755899288747,0.00118741,117220.0,117210.0,1.28363388]
[1755899288953,0.0002,117230.0,117210.0,1.28363388]
[1755899289165,0.00032312,117230.0,117220.0,0.25702695]
[1755899289364,0.00032312,117230.0,117220.0,1.01450943]
[1755899289564,0.00151053,117230.0,117220.0,1.28300943]
[1755899290243,0.00151053,117230.0,117220.0,1.28642643]
[1755899290482,0.00151053,117230.0,117220.0,0.78521042]
[1755899290724,0.00151053,117230.0,117220.0,1.28742643]
[1755899291785,0.00151053,117230.0,117220.0,1.28942643]
[1755899292255,0.00032312,117230.0,117220.0,1.28942643]
[1755899292523,0.00032312,117230.0,117220.0,1.48942643]
[1755899293420,0.00032312,117230.0,117220.0,1.58942643]
[1755899293646,0.00032312,117230.0,117220.0,1.64887346]
[1755899293890,0.00032312,117230.0,117220.0,1.15165745]
[1755899294095,0.00032312,117230.0,117220.0,1.65287346]
[1755899294267,0.00032312,117230.0,117220.0,1.80031089]
[1755899294471,0.00032312,117230.0,117220.0,1.80431089]
[1755899295057,0.00032312,117230.0,117220.0,1.80531089]
[1755899295461,0.00032312,117230.0,117220.0,1.81031089]
[1755899296916,0.00032312,117230.0,117220.0,2.41033949]
[1755899297115,0.00032312,117230.0,117220.0,1.90912348]
[1755899297388,0.00032312,117230.0,117220.0,1.94712462]
[1755899297964,6.386e-05,117240.0,117230.0,1.12792465]
[1755899298178,0.00014588,117240.0,117230.0,1.52137905]
[1755899298456,0.00014588,117240.0,117230.0,1.79224374]
[1755899298699,0.00014588,117240.0,117230.0,1.79565974]
[1755899298901,0.00024828,117250.0,117240.0,0.93063641]
[1755899299106,0.00024828,117250.0,117240.0,1.41323399]
[1755899299303,0.00024828,117250.0,117240.0,1.44705895]
[1755899299491,0.00024828,117250.0,117240.0,1.47687384]
[1755899299681,0.00024828,117250.0,117240.0,1.48028984]
[1755899300520,0.00024828,117250.0,117240.0,1.45047495]
[1755899300682,0.00024828,117250.0,117240.0,1.45347495]
[1755899300910,0.00024828,117250.0,117240.0,1.45647495]
[1755899301085,0.00024828,117250.0,117240.0,1.46518668]
[1755899305261,0.00024828,117250.0,117240.0,1.49499012]
[1755899309833,0.00024828,117250.0,117240.0,1.93982339]
[1755899312409,0.00024828,117250.0,117240.0,2.03682339]
[1755899312852,0.00024828,117250.0,117240.0,2.04082339]
[1755899313253,0.00024828,117250.0,117240.0,2.03782339]
[1755899314065,0.00024828,117250.0,117240.0,2.03982339]
[1755899315133,0.00024828,117250.0,117240.0,2.48465666]
[1755899315405,0.00024828,117250.0,117240.0,2.03982339]
[1755899316003,0.00024828,117250.0,117240.0,2.48465666]
[1755899316205,0.0002,117260.0,117250.0,0.46744902]
[1755899316407,0.0002,117270.0,117260.0,0.41626161]
[1755899316617,0.0002,117270.0,117260.0,1.72258325]
[1755899316871,0.0002,117270.0,117260.0,1.69199118]
[1755899317454,0.0002,117270.0,117260.0,1.78534618]
[1755899317658,0.0002,117270.0,117260.0,1.78934618]
[1755899317866,0.0002,117270.0,117260.0,1.87621583]
[1755899319385,0.0002,117270.0,117260.0,1.87821583]
[1755899320594,0.0002,117270.0,117260.0,1.62422681]
[1755899320797,0.0002,117270.0,117260.0,1.78847583]
[1755899321091,0.0002,117270.0,117260.0,1.78859583]
[1755899321835,0.0002,117270.0,117260.0,1.64167583]
[1755899322243,0.00216,117270.0,117260.0,1.54286324]
[1755899322598,0.00216,117270.0,117260.0,1.68974324]
[1755899323013,0.0002,117270.0,117260.0,1.53630581]
[1755899325156,0.0002,117270.0,117260.0,1.55340581]
[1755899325370,0.00143,117290.0,117270.0,0.26815412]
[1755899325574,0.00034423,117280.0,117270.0,1.13366726]
[1755899325788,0.00353423,117280.0,117270.0,1.28054726]
[1755899326004,0.00353423,117280.0,117270.0,0.68883399]
[1755899326250,0.00353423,117280.0,117270.0,0.57097587]
[1755899326923,0.00230423,117280.0,117270.0,0.57397587]
[1755899328392,0.00230423,117280.0,117270.0,0.68088474]
[1755899329582,0.00230423,117280.0,117270.0,0.53400474]
[1755899329786,0.00353423,117280.0,117270.0,0.68092474]
[1755899329990,0.00230423,117280.0,117270.0,0.68092474]
[1755899330109,0.00230423,117280.0,117270.0,0.72011975]
[1755899331498,0.00230423,117280.0,117270.0,0.72007975]
[1755899331910,0.00034423,117280.0,117270.0,0.72220975]
[1755899332060,0.00034423,117280.0,117270.0,0.72513975]
[1755899332467,0.00230423,117280.0,117270.0,0.72513975]
[1755899332800,0.00034423,117280.0,117270.0,1.16997302]
[1755899333370,0.00034423,117280.0,117270.0,0.72513975]
[1755899333626,0.00034423,117280.0,117270.0,0.61823088]
[1755899333841,0.00034423,117280.0,117270.0,1.06306415]
[1755899335392,0.00034423,117280.0,117270.0,1.08016415]
[1755899336339,3.155e-05,117280.0,117270.0,1.08016415]
[1755899336623,3.155e-05,117280.0,117270.0,2.12843485]
[1755899336851,0.0002,117290.0,117280.0,0.11744902]
[1755899337033,0.0002,117290.0,117280.0,1.05881706]
[1755899337341,0.0002,117290.0,117280.0,1.05838669]
[1755899337539,0.0002,117290.0,117280.0,1.21446723]
[1755899338394,0.0002,117290.0,117280.0,1.2144477]
[1755899339005,0.0002,117290.0,117280.0,1.2315477]
[1755899339191,0.0002,117290.0,117280.0,1.07890069]
[1755899339601,0.0002,117290.0,117280.0,1.23154271]
[1755899341239,0.0002,117290.0,117280.0,1.07990069]
[1755899341675,0.0002,117290.0,117280.0,1.07890069]
[1755899341796,0.0002,117290.0,117280.0,1.08090069]
[1755899342411,0.0002,117290.0,117280.0,1.08390069]
[1755899344183,0.0002,117290.0,117280.0,1.35240069]
[1755899345801,0.07022513,117360.0,117290.0,0.2]
[1755899345980,0.07022513,117360.0,117310.0,0.10433377]
[1755899345981,0.00048067,117320.0,117310.0,0.10433377]
[1755899346230,0.00048067,117320.0,117310.0,0.69008377]
[1755899346996,0.00048067,117320.0,117310.0,0.76642975]
[1755899347605,0.00148067,117320.0,117310.0,0.76642975]
[1755899347817,0.00148067,117320.0,117310.0,0.84122585]
[1755899348549,0.00148067,117320.0,117310.0,0.84957572]
[1755899348777,0.00248067,117320.0,117310.0,0.84957572]
[1755899349243,0.00248067,117320.0,117310.0,0.6853667]
[1755899349396,0.00248067,117320.0,117310.0,0.8320867]
[1755899349614,0.00248067,117320.0,117310.0,0.75574072]
[1755899349841,0.00248067,117320.0,117310.0,0.83206085]
[1755899350050,0.00248067,117320.0,117310.0,0.82371098]
[1755899350523,0.05670274,117360.0,117310.0,0.82371098]
[1755899350751,0.11811869,117360.0,117320.0,0.14672]
[1755899350977,0.11811869,117360.0,117330.0,0.14672]
[1755899351197,0.14373169,117360.0,117340.0,0.14672]
[1755899351491,0.14373169,117360.0,117340.0,0.31716]
[1755899351697,0.11264195,117360.0,117340.0,0.31716]
[1755899351907,0.12164195,117360.0,117340.0,0.31716]
[1755899352202,0.11664195,117360.0,117340.0,0.31716]
[1755899352324,0.11764195,117360.0,117340.0,0.32689116]
[1755899352545,0.1263869,117360.0,117340.0,0.32689116]
[1755899352948,0.1303869,117360.0,117340.0,0.32689116]
[1755899353147,0.1047739,117360.0,117340.0,0.32689116]
[1755899353591,0.1047739,117360.0,117340.0,0.31716]
[1755899354321,0.1303869,117360.0,117340.0,0.31716]
[1755899356382,0.1047739,117360.0,117340.0,0.31716]
[1755899357689,0.1303879,117360.0,117340.0,0.31716]
[1755899357895,0.1047739,117360.0,117340.0,0.31716]
[1755899358035,0.1303879,117360.0,117340.0,0.31716]
[1755899358686,0.08688475,117350.0,117340.0,0.17044]
[1755899359291,0.11250075,117350.0,117340.0,0.17044]
[1755899360106,0.11650075,117350.0,117340.0,0.17044]
[1755899361166,0.11950075,117350.0,117340.0,0.17044]
[1755899364733,0.007,117350.0,117340.0,0.17044]
[1755899365773,0.09388475,117350.0,117340.0,0.17044]
[1755899365947,0.10672344,117350.0,117340.0,0.17044]
[1755899366530,0.09388475,117350.0,117340.0,0.17044]
[1755899366942,0.11950075,117350.0,117340.0,0.17044]
[1755899383654,0.11950075,117350.0,117340.0,0.17347]
[1755899385032,0.11950075,117350.0,117340.0,0.17044]
[1755899386260,0.45950075,117350.0,117340.0,0.17044]
[1755899386462,0.53104374,117350.0,117340.0,0.17044]
[1755899386662,0.52804374,117350.0,117340.0,0.17044]
[1755899387068,0.53204374,117350.0,117340.0,0.17044]
[1755899387421,0.52804374,117350.0,117340.0,0.17044]
[1755899387624,0.52704374,117350.0,117340.0,0.17044]
[1755899387822,0.53204374,117350.0,117340.0,0.17044]
[1755899388236,0.62704374,117350.0,117340.0,0.17044]
[1755899388449,0.62404374,117350.0,117340.0,0.17044]
[1755899388875,0.78376659,117350.0,117340.0,0.17044]
[1755899389699,0.79475912,117350.0,117340.0,0.17044]
[1755899391162,0.78676659,117350.0,117340.0,0.17044]
[1755899391402,0.79475613,117350.0,117340.0,0.17044]
[1755899393199,0.96518646,117350.0,117340.0,0.17044]
[1755899393821,0.34,117330.0,117310.0,0.00303]
[1755899394213,0.23304475,117320.0,117310.0,0.00303]
[1755899394418,0.23304475,117320.0,117310.0,0.17548]
[1755899394599,0.25866675,117320.0,117310.0,0.17548]
[1755899395527,0.25881087,117320.0,117310.0,0.17848]
[1755899396536,0.25981087,117320.0,117310.0,0.17848]
[1755899396879,0.32253198,117320.0,117310.0,0.17848]
[1755899397572,0.32248118,117320.0,117310.0,0.17642594]
[1755899403060,0.32248118,117320.0,117310.0,0.17342594]
[1755899403693,0.32148118,117320.0,117310.0,0.17342594]
[1755899404020,0.32448118,117320.0,117310.0,0.17342594]
[1755899404460,0.35945761,117320.0,117310.0,0.17342594]
[1755899404658,0.36343761,117320.0,117310.0,0.17047]
[1755899404910,0.70343761,117320.0,117310.0,0.17047]
[1755899405097,0.80343761,117320.0,117310.0,0.17047]
[1755899405587,0.70343761,117320.0,117310.0,0.17047]
[1755899405789,0.80343761,117320.0,117310.0,0.17047]
[1755899406888,0.70343761,117320.0,117310.0,0.17047]
[1755899407099,0.80543761,117320.0,117310.0,0.17047]
[1755899407503,0.80343761,117320.0,117310.0,0.17047]
[1755899407710,0.90548761,117320.0,117310.0,0.17047]
[1755899407921,0.90948761,117320.0,117310.0,0.17047]
[1755899408142,0.90743761,117320.0,117310.0,0.17047]
[1755899409004,0.92693663,117320.0,117310.0,0.17047]
[1755899417284,0.9349179,117320.0,117310.0,0.17047]
[1755899418964,0.1,117300.0,117290.0,0.00304]
[1755899419112,0.41294663,117300.0,117290.0,0.00506]
[1755899419319,0.41492663,117300.0,117290.0,0.17557]
[1755899419719,0.44055663,117300.0,117290.0,0.17557]
[1755899419983,0.34055663,117300.0,117290.0,0.17557]
[1755899420345,0.44155663,117300.0,117290.0,0.17557]
[1755899420495,0.54155663,117300.0,117290.0,0.17557]
[1755899420696,0.54155663,117300.0,117290.0,0.17051]
[1755899420697,0.55900565,117300.0,117290.0,0.17051]
[1755899421496,0.5806461,117300.0,117290.0,0.17051]
[1755899421745,0.9206461,117300.0,117290.0,0.17051]
[1755899421896,0.9196461,117300.0,117290.0,0.17051]
[1755899422097,0.94359342,117300.0,117290.0,0.17051]
[1755899422342,0.94559342,117300.0,117290.0,0.17051]
[1755899422515,0.92762854,117300.0,117290.0,0.17051]
[1755899422957,0.93062854,117300.0,117290.0,0.17051]
[1755899423160,0.92762854,117300.0,117290.0,0.17051]
[1755899423358,0.9469746,117300.0,117290.0,0.17051]
[1755899423524,1.11747758,117300.0,117290.0,0.17051]
[1755899423741,0.95993126,117300.0,117290.0,0.17051]
[1755899424115,0.96393126,117300.0,117290.0,0.17051]
[1755899424726,1.13443424,117300.0,117290.0,0.17051]
[1755899425650,1.13442684,117300.0,117290.0,0.17051]
[1755899426478,1.09714908,117300.0,117290.0,0.17051]
[1755899426721,1.12107523,117300.0,117290.0,0.17051]
[1755899427138,1.1210707,117300.0,117290.0,0.17051]
[1755899427550,1.1190207,117300.0,117290.0,0.17051]
[1755899427960,0.55744902,117290.0,117270.0,0.011957]
[1755899428169,0.23308475,117280.0,117270.0,0.011957]
[1755899428381,0.23506475,117280.0,117270.0,0.184507]
[1755899428535,0.33506475,117280.0,117270.0,0.184507]
[1755899428750,0.36069875,117280.0,117270.0,0.184507]
[1755899428950,0.39903,117280.0,117270.0,0.184507]
[1755899429157,0.46175111,117280.0,117270.0,0.184507]
[1755899429366,0.46175111,117280.0,117270.0,0.18498767]
[1755899429571,0.46275111,117280.0,117270.0,0.18498767]
[1755899429776,0.46077111,117280.0,117270.0,0.18498767]
[1755899430405,0.36277111,117280.0,117270.0,0.18498767]
[1755899430585,0.46277111,117280.0,117270.0,0.18498767]
[1755899431364,0.60965025,117280.0,117270.0,0.18498767]
[1755899431597,0.94965025,117280.0,117270.0,0.18498767]
[1755899433076,0.94965025,117280.0,117270.0,0.17992767]
[1755899433293,0.94965025,117280.0,117270.0,0.17971403]
[1755899437703,0.94965025,117280.0,117270.0,0.18478703]
[1755899437907,1.12018231,117280.0,117270.0,0.17975703]
[1755899438160,0.94965025,117280.0,117270.0,0.17975703]
[1755899438309,0.96560055,117280.0,117270.0,0.17975703]
[1755899438511,0.96560055,117280.0,117270.0,0.18272703]
[1755899438712,0.96460055,117280.0,117270.0,0.18272703]
[1755899439123,0.96660055,117280.0,117270.0,0.18272703]
[1755899439322,1.13917261,117280.0,117270.0,0.17975703]
[1755899439527,1.13513261,117280.0,117270.0,0.17975703]
[1755899439932,0.96660055,117280.0,117270.0,0.17975703]
[1755899440516,0.96460055,117280.0,117270.0,0.17975703]
[1755899440718,1.41490055,117280.0,117270.0,0.17975703]
[1755899440908,1.4344635,117280.0,117270.0,0.17975703]
[1755899441812,1.60299556,117280.0,117270.0,0.17975703]
[1755899442059,1.60504556,117280.0,117270.0,0.17975703]
[1755899442265,1.60499556,117280.0,117270.0,0.17975703]
[1755899442467,1.61834436,117280.0,117270.0,0.17975703]
[1755899442671,1.62039436,117280.0,117270.0,0.17975703]
[1755899442873,1.62837093,117280.0,117270.0,0.17975703]
[1755899444402,0.55744902,117270.0,117260.0,0.0549]
[1755899444611,0.8237221,117270.0,117260.0,0.06007423]
[1755899444809,0.8237221,117270.0,117260.0,0.22856423]
[1755899445024,0.8237221,117270.0,117260.0,0.22559423]
[1755899445225,0.8493621,117270.0,117260.0,0.22559423]
[1755899445644,0.8493621,117270.0,117260.0,0.23062423]
[1755899447280,0.8513621,117270.0,117260.0,0.23062423]
[1755899448055,0.8513621,117270.0,117260.0,0.22559423]
[1755899448500,0.8513621,117270.0,117260.0,0.23062423]
[1755899449475,0.86733353,117270.0,117260.0,0.23062423]
[1755899450172,0.86733353,117270.0,117260.0,0.22856423]
[1755899451206,0.86733353,117270.0,117260.0,0.22559423]
[1755899451409,0.87532232,117270.0,117260.0,0.22559423]
[1755899451721,0.87532232,117270.0,117260.0,0.22856423]
[1755899452127,0.86733353,117270.0,117260.0,0.22856423]
[1755899453256,0.86733353,117270.0,117240.0,0.00297]
[1755899453257,0.1,117260.0,117240.0,0.00297]
[1755899453424,0.77504902,117250.0,117240.0,0.00297]
[1755899453635,0.77504902,117250.0,117240.0,0.17561]
[1755899453636,0.85148991,117250.0,117240.0,0.17561]
[1755899453862,0.87713291,117250.0,117240.0,0.17561]
[1755899454054,0.8771327,117250.0,117240.0,0.17561]
[1755899454611,1.0348164,117250.0,117240.0,0.17561]
[1755899455366,0.99765727,117250.0,117240.0,0.17561]
[1755899455548,1.02172853,117250.0,117240.0,0.17561]
[1755899456422,1.02372853,117250.0,117240.0,0.17561]
[1755899456644,1.02576853,117250.0,117240.0,0.17058]
[1755899456874,1.02576853,117250.0,117240.0,0.17561]
[1755899457327,1.02372853,117250.0,117240.0,0.17561]
[1755899457811,1.00065727,117250.0,117240.0,0.17561]
[1755899459602,1.01400867,117250.0,117240.0,0.17561]
[1755899460650,1.01598867,117250.0,117240.0,0.17561]
[1755899461529,1.03196511,117250.0,117240.0,0.17561]
[1755899461738,1.02998511,117250.0,117240.0,0.17561]
[1755899461954,1.01400867,117250.0,117240.0,0.17561]
[1755899462388,1.02998594,117250.0,117240.0,0.17561]
[1755899462620,1.01400867,117250.0,117240.0,0.17561]
[1755899464087,1.23608867,117250.0,117240.0,0.17561]
[1755899468882,1.23608867,117250.0,117240.0,0.17058]
[1755899468883,1.23806867,117250.0,117240.0,0.17058]
[1755899469124,1.41069436,117250.0,117240.0,0.17058]
[1755899469369,1.27917465,117250.0,117240.0,0.17058]
[1755899470296,1.27717465,117250.0,117240.0,0.17058]
[1755899471151,1.23811867,117250.0,117240.0,0.17058]
[1755899471359,1.25105441,117250.0,117240.0,0.17058]
[1755899471581,1.25405441,117250.0,117240.0,0.17058]
[1755899471792,1.25405509,117250.0,117240.0,0.17058]
[1755899472218,1.25705509,117250.0,117240.0,0.17058]
[1755899472445,1.28012635,117250.0,117240.0,0.17058]
[1755899472652,1.27917635,117250.0,117240.0,0.17058]
[1755899472855,1.28217635,117250.0,117240.0,0.17058]
[1755899473268,1.28012635,117250.0,117240.0,0.17058]
[1755899473713,1.28217635,117250.0,117240.0,0.17058]
[1755899474125,1.25705509,117250.0,117240.0,0.17058]
[1755899474334,1.26504989,117250.0,117240.0,0.17058]
[1755899474545,1.24575369,117250.0,117240.0,0.17058]
[1755899476453,1.25374853,117250.0,117240.0,0.17058]
[1755899476673,1.24575369,117250.0,117240.0,0.17058]
[1755899476873,1.26882495,117250.0,117240.0,0.17058]
[1755899477494,1.27682064,117250.0,117240.0,0.17058]
[1755899477724,1.28217699,117250.0,117240.0,0.17058]
[1755899477931,1.28812264,117250.0,117240.0,0.17058]
[1755899478166,1.29017264,117250.0,117240.0,0.17058]
[1755899478384,1.28217699,117250.0,117240.0,0.17058]
[1755899478595,1.2901733,117250.0,117240.0,0.17058]
[1755899478831,1.46074899,117250.0,117240.0,0.17058]
[1755899479258,1.42146661,117250.0,117240.0,0.17058]
[1755899480331,1.43190533,117250.0,117240.0,0.17058]
[1755899480623,1.43990232,117250.0,117240.0,0.17058]
[1755899480842,1.43990393,117250.0,117240.0,0.17058]
[1755899481064,1.42390834,117250.0,117240.0,0.17058]
[1755899481284,1.43990393,117250.0,117240.0,0.17058]
[1755899482841,1.44590429,117250.0,117240.0,0.17058]
[1755899484611,1.44385429,117250.0,117240.0,0.17058]
[1755899486162,1.44590429,117250.0,117240.0,0.17058]
[1755899486405,1.44386474,117250.0,117240.0,0.17058]
[1755899488270,1.44591474,117250.0,117240.0,0.17058]
[1755899488894,1.44386474,117250.0,117240.0,0.17058]
[1755899489339,1.43991856,117250.0,117240.0,0.17058]
[1755899489522,1.44592064,117250.0,117240.0,0.162033]
[1755899489743,1.44387064,117250.0,117240.0,0.162033]
[1755899489944,1.4438702,117250.0,117240.0,0.153486]
[1755899490264,1.4459202,117250.0,117240.0,0.144939]
[1755899490686,1.4459202,117250.0,117240.0,0.136392]
[1755899491099,1.4459202,117250.0,117240.0,0.127845]
[1755899491555,1.4459202,117250.0,117240.0,0.119298]
[1755899491914,1.4459202,117250.0,117240.0,0.110751]
[1755899492447,1.4459202,117250.0,117240.0,0.102204]
[1755899492668,1.4459202,117250.0,117240.0,0.093657]
[1755899493036,1.4459202,117250.0,117240.0,0.08511]
[1755899493207,1.48381556,117250.0,117240.0,0.08511]
[1755899493416,1.48381556,117250.0,117240.0,0.076563]
[1755899493837,1.48381556,117250.0,117240.0,0.068016]
[1755899494293,1.48381556,117250.0,117240.0,0.059469]
[1755899494726,1.48381556,117250.0,117240.0,0.05092169]
[1755899495133,1.48381556,117250.0,117240.0,0.04237438]
[1755899495574,1.48381556,117250.0,117240.0,0.03382707]
[1755899495795,1.48381556,117250.0,117240.0,0.02545161]
[1755899495985,1.48381556,117250.0,117240.0,0.0116073]
[1755899496191,1.48381556,117250.0,117240.0,0.0036533]
[1755899496350,0.54,117230.0,117220.0,0.00354]
[1755899496551,0.78846663,117230.0,117220.0,0.17618]
[1755899496954,0.81411663,117230.0,117220.0,0.17618]
[1755899497561,0.81411663,117230.0,117220.0,0.17626202]
[1755899497983,0.81511663,117230.0,117220.0,0.17626202]
[1755899498225,0.81611663,117230.0,117220.0,0.17626202]
[1755899499447,0.98870142,117230.0,117220.0,0.17626202]
[1755899499652,1.00205508,117230.0,117220.0,0.17626202]
[1755899499808,1.02512634,117230.0,117220.0,0.17626202]
[1755899500010,1.07258324,117230.0,117220.0,0.17626202]
[1755899500467,1.05757946,117230.0,117220.0,0.17626202]
[1755899500880,1.05957946,117230.0,117220.0,0.17626202]
[1755899501114,1.09501575,117230.0,117220.0,0.17626202]
[1755899501307,1.09501575,117230.0,117220.0,0.17312202]
[1755899501535,1.09201575,117230.0,117220.0,0.17312202]
[1755899501902,1.09501575,117230.0,117220.0,0.17312202]
[1755899502369,1.09501575,117230.0,117220.0,0.17109202]
[1755899507258,3.53952732,117220.0,117210.0,0.00314]
[1755899507467,3.89248221,117220.0,117210.0,0.00326312]
[1755899507656,3.89246598,117220.0,117210.0,0.00529312]
[1755899507793,3.89246598,117220.0,117210.0,0.17592312]
[1755899508005,3.91811898,117220.0,117210.0,0.17592312]
[1755899508217,3.91811921,117220.0,117210.0,0.17592312]
[1755899508562,3.92111921,117220.0,117210.0,0.17592312]
[1755899509340,3.92111718,117220.0,117210.0,0.17592312]
[1755899509561,3.92111718,117220.0,117210.0,0.17278312]
[1755899510287,3.92111718,117220.0,117210.0,0.17592312]
[1755899510973,3.9385662,117220.0,117210.0,0.17592312]
[1755899511589,3.9365862,117220.0,117210.0,0.17592312]
[1755899511818,4.3838862,117220.0,117210.0,0.17592312]
[1755899512022,4.42467056,117220.0,117210.0,0.17278312]
[1755899512871,4.42467056,117220.0,117210.0,0.17592312]
[1755899513106,4.42467056,117220.0,117210.0,0.17278312]
[1755899513296,4.4326613,117220.0,117210.0,0.17278312]
[1755899514815,4.4326613,117220.0,117210.0,0.17592312]
[1755899516878,4.42466653,117220.0,117210.0,0.17592312]
[1755899517014,4.43265755,117220.0,117210.0,0.17075312]
[1755899517431,4.43265939,117220.0,117210.0,0.17075312]
[1755899517635,4.4326592,117220.0,117210.0,0.17075312]
[1755899519315,4.45107485,117220.0,117210.0,0.17075312]
[1755899520356,4.45007485,117220.0,117210.0,0.17075312]
[1755899520982,4.44807485,117220.0,117210.0,0.17075312]
[1755899521191,4.45407485,117220.0,117210.0,0.17075312]
[1755899521397,4.45107485,117220.0,117210.0,0.17075312]
[1755899521626,4.44807485,117220.0,117210.0,0.17075312]
[1755899521838,4.45107485,117220.0,117210.0,0.17075312]
[1755899522043,4.45108111,117220.0,117210.0,0.16220423]
[1755899522254,4.46007718,117220.0,117210.0,0.16220423]
[1755899522511,4.46007718,117220.0,117210.0,0.15365534]
[1755899522915,4.46007718,117220.0,117210.0,0.14510645]
[1755899523296,4.46007718,117220.0,117210.0,0.13655756]
[1755899523492,4.01277718,117220.0,117210.0,0.13655756]
[1755899523704,4.01277718,117220.0,117210.0,0.12800867]
[1755899524097,4.01277718,117220.0,117210.0,0.11945978]
[1755899524324,3.97397282,117220.0,117210.0,0.11945978]
[1755899525199,3.97398754,117220.0,117210.0,0.11945978]
[1755899525604,3.97398962,117220.0,117210.0,0.11945978]
[1755899526001,3.973992,117220.0,117210.0,0.11945978]
[1755899527916,3.973992,117220.0,117210.0,0.11091032]
[1755899528327,3.973992,117220.0,117210.0,0.10236086]
[1755899528788,3.973992,117220.0,117210.0,0.0938114]
[1755899529146,3.973992,117220.0,117210.0,0.08526194]
[1755899529507,3.976042,117220.0,117210.0,0.07671248]
[1755899529965,3.976042,117220.0,117210.0,0.06816302]
[1755899530367,3.976042,117220.0,117210.0,0.05961356]
[1755899530703,3.976042,117220.0,117210.0,0.0510641]
[1755899530877,3.976042,117220.0,117210.0,0.0382841]
[1755899531101,3.976042,117220.0,117210.0,0.02414564]
[1755899531306,3.97606173,117220.0,117210.0,0.01696764]
[1755899531508,3.97606173,117220.0,117210.0,0.00841818]
[1755899531733,4.01523119,117220.0,117210.0,0.00841818]